bitfinex/quotes_SOLUSD_20230113
["timestamp","ask_amount","ask_price","bid_price","bid_amount"]
[1673607265699,44.71,16.775,16.761,10.0]
[1673607266866,17.0,16.774,16.761,10.0]
[1673607267179,44.72,16.773,16.761,10.0]
[1673607267496,17.0,16.772,16.761,10.0]
[1673607268429,44.71,16.775,16.761,10.0]
[1673607268641,17.0,16.774,16.76,113.3812]
[1673607268847,44.72,16.773,16.759,10.0]
[1673607269072,37.0,16.772,16.759,10.0]
[1673607269265,44.72,16.771,16.759,10.0]
[1673607269475,20.0,16.77,16.759,10.0]
[1673607270100,44.71,16.778,16.759,10.0]
[1673607270447,20.0,16.777,16.76,16.17]
[1673607270649,44.71,16.776,16.762,10.0]
[1673607270865,44.71,16.778,16.762,10.0]
[1673607271197,20.0,16.777,16.762,10.0]
[1673607271392,61.71,16.776,16.761,112.7985]
[1673607272356,61.71,16.776,16.758,109.276]
[1673607272357,16.16,16.77,16.758,109.276]
[1673607272660,44.73,16.769,16.758,109.276]
[1673607272872,17.0,16.768,16.758,109.276]
[1673607273068,44.74,16.767,16.754,109.7783]
[1673607273279,37.0,16.766,16.754,109.7783]
[1673607273489,44.74,16.765,16.754,109.7783]
[1673607273702,17.0,16.764,16.754,109.7783]
[1673607273921,44.74,16.765,16.754,109.7783]
[1673607274127,44.74,16.765,16.755,10.0]
[1673607276433,20.0,16.766,16.756,17.0]
[1673607276657,20.0,16.769,16.756,17.0]
[1673607276979,20.0,16.769,16.757,10.0]
[1673607278122,20.0,16.769,16.758,17.0]
[1673607280022,44.73,16.769,16.758,17.0]
[1673607280237,44.88607618,16.773,16.759,10.0]
[1673607280447,17.0,16.772,16.759,10.0]
[1673607281176,17.0,16.773,16.759,10.0]
[1673607281394,44.72,16.772,16.759,10.0]
[1673607281578,44.72,16.772,16.758,127.5688]
[1673607281788,16.09,16.77,16.758,127.5688]
[1673607282019,64.73,16.769,16.758,127.5688]
[1673607282234,64.73,16.769,16.758,110.5688]
[1673607282629,17.0,16.768,16.758,110.5688]
[1673607282840,44.74,16.767,16.758,110.5688]
[1673607283049,44.74,16.767,16.706,369.93447684]
[1673607283050,44.74,16.767,16.744,396.6]
[1673607283279,16.16,16.76,16.744,113.5831]
[1673607283494,64.76,16.759,16.745,10.0]
[1673607288865,44.75,16.761,16.745,10.0]
[1673607289054,44.74,16.764,16.747,10.0]
[1673607289254,26.38088354,16.768,16.748,20.0]
[1673607289255,44.74,16.767,16.748,20.0]
[1673607289464,45.07215236,16.767,16.75,10.0]
[1673607289686,45.07215236,16.767,16.751,111.0714]
[1673607289897,17.0,16.766,16.752,10.0]
[1673607290214,44.74,16.765,16.752,10.0]
[1673607290416,0.33215236,16.767,16.752,10.0]
[1673607290643,44.74,16.766,16.752,10.0]
[1673607291384,17.0,16.765,16.752,10.0]
[1673607291569,44.74,16.764,16.752,10.0]
[1673607291780,44.74,16.764,16.751,111.0714]
[1673607292711,44.74,16.766,16.751,111.0714]
[1673607292925,44.74,16.766,16.752,10.0]
[1673607293155,45.06215236,16.769,16.753,17.0]
[1673607293363,37.0,16.768,16.753,17.0]
[1673607293572,44.74,16.767,16.753,17.0]
[1673607293776,20.0,16.766,16.753,17.0]
[1673607293987,44.74,16.765,16.753,17.0]
[1673607296613,20.0,16.766,16.753,17.0]
[1673607299969,20.0,16.766,16.752,10.0]
[1673607300278,61.74,16.765,16.751,111.0714]
[1673607300505,61.74,16.765,16.74,195.1221]
[1673607300506,16.16,16.76,16.74,195.1221]
[1673607300719,0.08405617,16.751,16.742,115.052]
[1673607301159,0.08405617,16.751,16.743,10.0]
[1673607301897,0.08405617,16.751,16.742,115.052]
[1673607303249,0.00405617,16.751,16.744,10.0]
[1673607303890,0.00405617,16.751,16.745,17.0]
[1673607304834,64.76,16.759,16.746,10.0]
[1673607305027,20.0,16.759,16.746,10.0]
[1673607305235,16.16,16.76,16.746,10.0]
[1673607305449,44.74,16.764,16.747,20.0]
[1673607305670,44.74,16.766,16.748,17.0]
[1673607305890,80.9,16.77,16.748,17.0]
[1673607305891,0.49822854,16.767,16.749,109.3509]
[1673607306087,44.74,16.766,16.749,109.3509]
[1673607306295,44.74,16.766,16.75,10.0]
[1673607306512,44.74,16.766,16.75,27.0]
[1673607310383,44.73,16.769,16.75,27.0]
[1673607310605,0.49822854,16.767,16.75,27.0]
[1673607310814,44.74,16.766,16.75,27.0]
[1673607312095,45.23822854,16.767,16.75,27.0]
[1673607312404,20.0,16.766,16.75,27.0]
[1673607312617,44.74,16.765,16.75,27.0]
[1673607313664,20.0,16.766,16.75,27.0]
[1673607313871,44.73,16.769,16.75,27.0]
[1673607313872,20.0,16.768,16.75,27.0]
[1673607314095,20.0,16.768,16.75,43.18]
[1673607314096,44.74,16.767,16.75,43.18]
[1673607314301,66.25975983,16.77,16.751,33.28962079]
[1673607314302,20.0,16.766,16.751,33.28962079]
[1673607314613,20.0,16.766,16.751,38.66576079]
[1673607314826,20.0,16.774,16.751,10.0]
[1673607315018,44.72,16.773,16.752,17.0]
[1673607315230,20.0,16.772,16.753,10.0]
[1673607315433,20.0,16.772,16.754,17.0]
[1673607315666,44.72,16.771,16.754,17.0]
[1673607316072,20.0,16.77,16.754,17.0]
[1673607316805,16.18,16.77,16.754,17.0]
[1673607317016,20.0,16.769,16.754,17.0]
[1673607319018,64.73,16.769,16.754,17.0]
[1673607320197,20.0,16.769,16.754,17.0]
[1673607321551,44.72,16.772,16.754,17.0]
[1673607321766,44.72,16.772,16.755,20.0]
[1673607321974,44.71,16.775,16.755,20.0]
[1673607322170,44.71,16.775,16.756,119.3396]
[1673607322382,44.71,16.775,16.757,30.0]
[1673607323041,44.71,16.775,16.758,108.5839]
[1673607323341,17.0,16.774,16.758,108.5839]
[1673607323530,44.72,16.773,16.758,108.5839]
[1673607323742,17.0,16.774,16.758,108.5839]
[1673607323974,160.5926,16.776,16.758,108.5839]
[1673607325338,17.0,16.775,16.758,108.5839]
[1673607325555,44.72,16.774,16.758,108.5839]
[1673607325738,17.0,16.773,16.758,108.5839]
[1673607325948,44.72,16.772,16.759,10.0]
[1673607326262,44.71,16.775,16.759,10.0]
[1673607326471,44.7,16.779,16.759,10.0]
[1673607326685,37.0,16.778,16.76,17.0]
[1673607326998,44.71,16.777,16.76,17.0]
[1673607327208,37.0,16.776,16.76,17.0]
[1673607327420,44.71,16.775,16.759,10.0]
[1673607327629,17.0,16.774,16.759,10.0]
[1673607327858,44.72,16.773,16.759,10.0]
[1673607328068,17.0,16.772,16.759,10.0]
[1673607328593,17.0,16.772,16.758,118.5839]
[1673607329114,44.71,16.775,16.758,118.5839]
[1673607329537,20.0,16.776,16.758,118.5839]
[1673607329856,20.0,16.778,16.758,118.5839]
[1673607330062,20.0,16.778,16.759,10.0]
[1673607330509,44.71,16.777,16.759,10.0]
[1673607330703,20.0,16.776,16.759,10.0]
[1673607330885,20.0,16.776,16.761,10.0]
[1673607331221,20.0,16.778,16.761,10.0]
[1673607331434,44.71,16.777,16.761,10.0]
[1673607331641,20.0,16.776,16.762,17.0]
[1673607332389,20.0,16.778,16.762,17.0]
[1673607332689,20.0,16.778,16.764,10.0]
[1673607333096,20.0,16.778,16.763,109.189]
[1673607333314,44.71,16.777,16.763,109.189]
[1673607333519,20.0,16.776,16.763,109.189]
[1673607333733,19.92020336,16.776,16.763,109.189]
[1673607333941,19.92020336,16.776,16.764,27.0]
[1673607334152,44.7,16.779,16.764,27.0]
[1673607334901,17.0,16.778,16.764,27.0]
[1673607335109,44.71,16.777,16.764,27.0]
[1673607335318,20.0,16.776,16.764,27.0]
[1673607335741,20.0,16.778,16.764,27.0]
[1673607336267,20.0,16.779,16.764,27.0]
[1673607336458,20.0,16.779,16.765,10.0]
[1673607336880,44.69,16.783,16.766,17.0]
[1673607337089,44.69,16.784,16.766,17.0]
[1673607337300,44.69,16.784,16.767,136.201]
[1673607337739,17.0,16.783,16.767,136.201]
[1673607337941,44.7,16.782,16.767,136.201]
[1673607338158,44.69,16.784,16.767,136.201]
[1673607338676,44.69,16.784,16.768,10.0]
[1673607340872,44.69,16.784,16.77,10.0]
[1673607341521,44.69,16.784,16.771,17.0]
[1673607341929,44.68,16.788,16.771,17.0]
[1673607342145,44.68,16.789,16.772,10.0]
[1673607342880,20.0,16.788,16.773,17.0]
[1673607343087,44.68,16.787,16.773,17.0]
[1673607343305,20.0,16.786,16.773,17.0]
[1673607343513,44.69,16.785,16.773,17.0]
[1673607344987,44.69,16.785,16.772,10.0]
[1673607346579,20.0,16.786,16.772,10.0]
[1673607346791,20.0,16.788,16.772,10.0]
[1673607346973,44.68,16.787,16.772,10.0]
[1673607347185,20.0,16.786,16.772,10.0]
[1673607347827,20.0,16.789,16.772,10.0]
[1673607348260,44.68,16.788,16.772,10.0]
[1673607348445,20.0,16.787,16.772,10.0]
[1673607348662,64.68,16.789,16.772,10.0]
[1673607348663,20.0,16.789,16.772,10.0]
[1673607348871,20.0,16.789,16.773,18.803]
[1673607349084,20.0,16.792,16.773,18.803]
[1673607349321,44.67,16.791,16.773,18.803]
[1673607349502,20.0,16.79,16.774,10.0]
[1673607349826,44.68,16.789,16.775,17.0]
[1673607350238,20.0,16.788,16.775,17.0]
[1673607350450,44.68,16.787,16.775,17.0]
[1673607350649,20.0,16.786,16.775,17.0]
[1673607351179,44.69,16.785,16.775,17.0]
[1673607352665,20.0,16.786,16.775,17.0]
[1673607352880,20.0,16.788,16.775,17.0]
[1673607353108,44.68,16.787,16.775,17.0]
[1673607353319,20.0,16.786,16.775,17.0]
[1673607354057,20.0,16.788,16.775,17.0]
[1673607354252,44.68,16.787,16.775,17.0]
[1673607354460,20.0,16.786,16.775,17.0]
[1673607354668,20.0,16.788,16.775,17.0]
[1673607354879,44.68,16.787,16.775,17.0]
[1673607355089,20.0,16.786,16.775,17.0]
[1673607355727,20.0,16.788,16.775,17.0]
[1673607355934,20.0,16.789,16.775,17.0]
[1673607357309,64.68,16.789,16.775,17.0]
[1673607357727,64.68,16.789,16.774,10.0]
[1673607360155,17.0,16.788,16.772,10.0]
[1673607360360,64.68,16.787,16.771,111.9092]
[1673607360590,17.0,16.786,16.771,111.9092]
[1673607360790,44.69,16.785,16.771,111.9092]
[1673607361521,44.69,16.785,16.767,116.201]
[1673607361710,16.16,16.78,16.767,116.201]
[1673607362034,44.7,16.779,16.767,116.201]
[1673607362247,20.0,16.778,16.767,116.201]
[1673607363104,16.16,16.78,16.767,116.201]
[1673607363105,20.0,16.779,16.767,116.201]
[1673607363408,44.71,16.778,16.767,116.201]
[1673607363623,20.0,16.777,16.767,116.201]
[1673607363817,44.71,16.776,16.767,116.201]
[1673607364670,20.0,16.777,16.767,116.201]
[1673607364885,20.0,16.778,16.767,116.201]
[1673607365084,44.71,16.777,16.767,116.201]
[1673607365297,20.0,16.776,16.767,116.201]
[1673607365707,20.0,16.778,16.767,116.201]
[1673607366131,20.0,16.778,16.768,10.0]
[1673607366350,20.0,16.779,16.768,10.0]
[1673607366964,20.0,16.779,16.767,116.201]
[1673607367172,44.71,16.778,16.767,116.201]
[1673607367400,20.0,16.777,16.767,116.201]
[1673607367728,44.71,16.776,16.767,116.201]
[1673607368241,20.0,16.777,16.767,116.201]
[1673607368430,20.0,16.778,16.767,116.201]
[1673607368648,44.71,16.777,16.767,116.201]
[1673607368863,20.0,16.776,16.767,116.201]
[1673607369500,20.0,16.779,16.768,10.0]
[1673607370327,44.69,16.785,16.768,10.0]
[1673607370537,44.68,16.786,16.77,12.13]
[1673607370745,44.68,16.789,16.77,12.13]
[1673607370981,44.68,16.789,16.771,118.81]
[1673607371383,44.68,16.789,16.772,10.0]
[1673607372025,12.08,16.79,16.772,10.0]
[1673607372872,44.66,16.795,16.773,20.0]
[1673607373063,44.65,16.799,16.773,48.65871079]
[1673607373274,44.65,16.799,16.774,23.28962079]
[1673607373485,44.65,16.799,16.776,10.0]
[1673607373701,44.81607618,16.799,16.777,20.0]
[1673607373897,44.81607618,16.799,16.778,10.0]
[1673607374110,44.81607618,16.799,16.779,115.348]
[1673607374111,17.0,16.798,16.779,115.348]
[1673607374336,64.66,16.797,16.78,10.0]
[1673607375804,17.0,16.796,16.78,10.0]
[1673607376016,44.66,16.795,16.78,22.13]
[1673607376231,20.0,16.797,16.781,17.0]
[1673607376427,20.0,16.798,16.782,10.0]
[1673607377274,20.0,16.798,16.783,17.0]
[1673607381054,20.0,16.799,16.784,10.0]
[1673607381274,20.0,16.799,16.784,33.28962079]
[1673607381482,20.0,16.799,16.784,56.57924158]
[1673607381702,20.0,16.799,16.784,33.28962079]
[1673607381891,20.0,16.799,16.785,149.39322079]
[1673607382333,20.0,16.799,16.786,10.0]
[1673607383147,12.16,16.8,16.786,10.0]
[1673607383362,44.63,16.808,16.787,37.0]
[1673607383573,20.0,16.807,16.788,10.0]
[1673607383802,44.63,16.806,16.788,10.0]
[1673607384012,61.63,16.806,16.788,10.0]
[1673607384409,61.63,16.806,16.789,17.0]
[1673607384829,12.13,16.8,16.789,17.0]
[1673607385462,44.65,16.799,16.785,109.1036]
[1673607386303,20.0,16.798,16.785,109.1036]
[1673607386516,44.66,16.797,16.785,109.1036]
[1673607386750,20.0,16.796,16.785,109.1036]
[1673607386935,44.66,16.795,16.785,109.1036]
[1673607387884,20.0,16.796,16.785,109.1036]
[1673607388095,20.0,16.798,16.785,109.1036]
[1673607388624,20.0,16.798,16.786,17.0]
[1673607390097,44.66,16.797,16.782,113.5219]
[1673607390323,20.0,16.796,16.782,113.5219]
[1673607390518,64.65,16.799,16.783,10.0]
[1673607390941,64.65,16.799,16.784,17.0]
[1673607391366,20.0,16.799,16.784,17.0]
[1673607391578,20.0,16.802,16.784,17.0]
[1673607391900,44.64,16.801,16.784,17.0]
[1673607392089,20.0,16.8,16.784,17.0]
[1673607392299,44.65,16.799,16.784,17.0]
[1673607392530,20.0,16.798,16.784,17.0]
[1673607393247,20.0,16.802,16.784,17.0]
[1673607393581,16.09,16.8,16.782,113.5219]
[1673607393794,81.65,16.799,16.782,113.5219]
[1673607396942,64.65,16.799,16.782,113.5219]
[1673607397349,64.65,16.799,16.783,10.0]
[1673607398307,20.0,16.799,16.784,17.0]
[1673607399037,16.09,16.8,16.785,10.0]
[1673607399241,20.0,16.799,16.787,10.0]
[1673607399565,20.0,16.806,16.788,17.0]
[1673607399762,44.63,16.805,16.788,17.0]
[1673607400397,44.63,16.808,16.789,119.4812]
[1673607401564,20.0,16.807,16.789,119.4812]
[1673607401777,44.63,16.806,16.789,119.4812]
[1673607402308,44.63,16.806,16.79,17.0]
[1673607404096,44.63,16.806,16.791,10.0]
[1673607406386,44.63,16.806,16.792,17.0]
[1673607407356,20.0,16.807,16.792,17.0]
[1673607407761,44.62,16.811,16.792,17.0]
[1673607407762,20.0,16.81,16.792,17.0]
[1673607407965,20.0,16.81,16.792,45.61720895]
[1673607408177,20.0,16.81,16.793,10.0]
[1673607408387,44.62,16.809,16.794,17.0]
[1673607408712,20.0,16.808,16.795,10.0]
[1673607408915,20.0,16.808,16.793,10.0]
[1673607408916,20.0,16.808,16.793,44.28560012]
[1673607409130,44.63,16.807,16.793,44.28560012]
[1673607409336,20.0,16.806,16.785,126.3889]
[1673607409543,44.63,16.805,16.785,126.3889]
[1673607410172,44.63,16.805,16.79,16.13]
[1673607410609,20.0,16.806,16.79,16.13]
[1673607410817,20.0,16.808,16.79,16.13]
[1673607411010,44.63,16.807,16.791,133.4988]
[1673607411226,20.0,16.806,16.791,133.4988]
[1673607411649,20.0,16.806,16.792,10.0]
[1673607411858,20.0,16.807,16.792,10.0]
[1673607412068,20.0,16.808,16.792,10.0]
[1673607412278,20.0,16.808,16.792,15.36302]
[1673607412510,20.0,16.81,16.792,15.36302]
[1673607412717,80.81,16.82,16.792,15.36302]
[1673607412718,44.6,16.819,16.793,25.3627]
[1673607412904,20.0,16.818,16.794,5.36238]
[1673607413110,44.6,16.817,16.794,15.36238]
[1673607413339,20.0,16.816,16.795,20.0]
[1673607413549,44.61,16.815,16.795,20.0]
[1673607413763,44.61,16.815,16.796,17.0]
[1673607413976,44.61,16.815,16.797,20.0]
[1673607414190,44.61,16.815,16.798,17.0]
[1673607414406,44.61,16.815,16.798,126.9219]
[1673607415011,44.61,16.815,16.799,10.0]
[1673607415651,44.93215236,16.818,16.799,10.0]
[1673607415857,20.0,16.817,16.799,10.0]
[1673607416072,44.61,16.816,16.8,17.0]
[1673607416709,44.61,16.816,16.799,10.0]
[1673607416904,44.61,16.816,16.798,119.9219]
[1673607417121,17.0,16.815,16.798,119.9219]
[1673607417329,44.61,16.814,16.798,119.9219]
[1673607418076,44.61,16.814,16.798,109.9219]
[1673607418281,44.61,16.814,16.795,10.0]
[1673607418482,44.61,16.814,16.796,20.0]
[1673607419762,44.61,16.816,16.797,10.0]
[1673607419967,44.61,16.816,16.798,20.0]
[1673607420593,44.61,16.816,16.8,10.0]
[1673607421137,20.0,16.817,16.801,17.0]
[1673607421319,20.0,16.817,16.802,10.0]
[1673607422075,20.0,16.817,16.804,10.0]
[1673607422596,44.6,16.819,16.804,10.0]
[1673607422597,20.0,16.818,16.804,10.0]
[1673607423021,20.0,16.819,16.804,10.0]
[1673607423207,64.6,16.819,16.804,10.0]
[1673607423426,20.0,16.819,16.804,10.0]
[1673607423641,44.6,16.818,16.803,111.808]
[1673607423846,20.0,16.817,16.803,111.808]
[1673607424063,44.61,16.816,16.803,111.808]
[1673607424485,44.61,16.816,16.801,117.365]
[1673607424697,17.0,16.815,16.798,20.0]
[1673607424893,44.61,16.814,16.798,20.0]
[1673607425103,16.13,16.81,16.798,20.0]
[1673607425314,16.13,16.81,16.797,20.0]
[1673607425738,44.61,16.814,16.797,20.0]
[1673607425939,44.61,16.814,16.798,10.0]
[1673607426154,20.0,16.817,16.798,10.0]
[1673607426595,20.0,16.818,16.798,10.0]
[1673607427220,20.0,16.818,16.8,16.07]
[1673607427417,20.0,16.818,16.801,17.0]
[1673607427941,20.0,16.819,16.801,17.0]
[1673607428147,44.6,16.818,16.801,17.0]
[1673607428381,20.0,16.817,16.801,17.0]
[1673607428579,64.6,16.819,16.801,17.0]
[1673607428796,64.6,16.819,16.801,18.988]
[1673607429412,20.0,16.819,16.801,18.988]
[1673607429856,44.59,16.823,16.803,10.0]
[1673607430056,44.57,16.829,16.804,305.66959]
[1673607430269,44.57,16.829,16.805,25.35887]
[1673607430585,44.57,16.829,16.806,7.738]
[1673607430802,44.57,16.829,16.808,10.0]
[1673607430986,44.57,16.829,16.808,20.16]
[1673607431196,44.57,16.829,16.809,17.0]
[1673607431413,44.57,16.829,16.81,10.0]
[1673607431623,44.57,16.829,16.81,21.38]
[1673607431844,20.0,16.828,16.811,17.0]
[1673607432167,44.58,16.827,16.812,227.5162]
[1673607432571,44.57,16.829,16.813,17.0]
[1673607432786,44.57,16.829,16.813,27.0]
[1673607433621,44.57,16.829,16.814,10.0]
[1673607433831,20.0,16.828,16.816,10.0]
[1673607434053,20.0,16.828,16.817,17.0]
[1673607434241,20.0,16.831,16.817,17.0]
[1673607434460,44.57,16.83,16.817,17.0]
[1673607434661,20.0,16.829,16.817,17.0]
[1673607435293,20.0,16.831,16.817,17.0]
[1673607435521,44.57,16.83,16.817,17.0]
[1673607435737,20.0,16.829,16.817,17.0]
[1673607436250,44.56,16.832,16.817,17.0]
[1673607436463,32.80385088,16.848,16.818,30.0]
[1673607436464,44.55,16.837,16.818,30.0]
[1673607436678,20.0,16.836,16.818,30.0]
[1673607436880,44.55,16.835,16.819,17.0]
[1673607437303,44.55,16.835,16.82,112.5028]
[1673607437726,44.55,16.835,16.821,27.0]
[1673607438059,44.55,16.835,16.821,139.119]
[1673607438237,44.55,16.837,16.821,139.119]
[1673607438662,16.13,16.83,16.815,7.341]
[1673607438991,44.57,16.829,16.815,7.341]
[1673607439319,20.16607618,16.828,16.815,7.341]
[1673607439628,44.58,16.827,16.815,7.341]
[1673607439821,20.0,16.826,16.813,123.6781]
[1673607440034,44.58,16.825,16.816,17.0]
[1673607440447,44.58,16.825,16.813,123.6781]
[1673607440676,44.58,16.825,16.814,17.0]
[1673607441936,44.58,16.825,16.813,123.6781]
[1673607442157,44.58,16.825,16.803,127.5219]
[1673607442340,44.58,16.825,16.807,111.6515]
[1673607443808,44.58,16.825,16.809,17.0]
[1673607444227,44.58,16.825,16.807,111.6515]
[1673607444440,17.0,16.824,16.807,111.6515]
[1673607444779,44.59,16.823,16.808,20.0]
[1673607444981,16.13,16.82,16.808,20.0]
[1673607445179,64.6,16.819,16.803,117.5219]
[1673607445616,64.6,16.819,16.804,10.0]
[1673607445822,20.0,16.819,16.804,10.0]
[1673607446044,20.0,16.822,16.804,10.0]
[1673607446352,44.59,16.821,16.804,10.0]
[1673607446755,44.58,16.824,16.804,10.0]
[1673607446991,44.58,16.824,16.805,17.0]
[1673607447178,44.58,16.824,16.806,30.0]
[1673607447409,105.0508,16.829,16.807,17.0]
[1673607447410,44.57,16.828,16.807,17.0]
[1673607447621,20.0,16.827,16.808,20.0]
[1673607447804,44.58,16.826,16.808,20.0]
[1673607448238,44.58,16.826,16.81,10.0]
[1673607448456,44.58,16.826,16.811,17.0]
[1673607449070,20.0,16.827,16.812,114.5516]
[1673607449280,44.58,16.826,16.813,27.0]
[1673607449491,44.58,16.826,16.813,17.0]
[1673607450748,44.58,16.826,16.812,114.5516]
[1673607452655,44.58,16.826,16.813,17.0]
[1673607454220,44.58,16.826,16.813,27.0]
[1673607454953,44.58,16.826,16.814,10.0]
[1673607455178,20.0,16.827,16.814,10.0]
[1673607455383,20.0,16.832,16.815,17.0]
[1673607455603,44.57,16.831,16.815,17.0]
[1673607455793,20.0,16.83,16.813,10.0]
[1673607456005,44.57,16.829,16.813,10.0]
[1673607456235,20.0,16.828,16.813,10.0]
[1673607456451,20.0,16.828,16.814,17.0]
[1673607456974,20.0,16.832,16.814,17.0]
[1673607457183,16.25607618,16.83,16.812,114.5516]
[1673607457376,81.57,16.829,16.812,114.5516]
[1673607457585,81.73607618,16.829,16.812,114.5516]
[1673607457808,64.57,16.829,16.812,114.5516]
[1673607457999,0.16607618,16.828,16.812,114.5516]
[1673607458209,44.58,16.827,16.812,114.5516]
[1673607458856,20.0,16.826,16.812,114.5516]
[1673607459467,44.58,16.825,16.806,10.0]
[1673607459684,16.13,16.82,16.803,117.5219]
[1673607459900,44.6,16.819,16.804,396.6]
[1673607460331,20.16607618,16.818,16.804,396.6]
[1673607460538,44.6,16.817,16.803,234.5844]
[1673607460750,20.0,16.816,16.803,234.5844]
[1673607460968,44.61,16.815,16.803,234.5844]
[1673607461402,44.61,16.815,16.803,117.0625]
[1673607462743,44.61,16.815,16.804,17.0]
[1673607465060,44.61,16.815,16.803,117.0625]
[1673607467783,44.61,16.815,16.799,10.0]
[1673607467994,17.0,16.814,16.799,10.0]
[1673607468317,44.61,16.813,16.799,10.0]
[1673607468526,44.61,16.815,16.799,10.0]
[1673607469163,44.61,16.815,16.8,17.0]
[1673607471048,44.61,16.815,16.799,10.0]
[1673607471269,17.0,16.814,16.799,10.0]
[1673607471450,44.61,16.813,16.799,10.0]
[1673607472299,44.61,16.813,16.8,17.0]
[1673607472516,44.61,16.813,16.797,124.4176]
[1673607472517,16.13,16.81,16.797,114.4176]
[1673607472827,64.62,16.809,16.797,114.4176]
[1673607476084,64.62,16.809,16.789,10.0]
[1673607476311,17.0,16.808,16.79,113.7677]
[1673607476519,64.63,16.807,16.791,10.0]
[1673607476929,17.0,16.806,16.791,10.0]
[1673607477256,44.63,16.805,16.791,10.0]
[1673607477587,44.63,16.806,16.791,10.0]
[1673607478842,44.63,16.806,16.795,17.0]
[1673607479889,44.63,16.806,16.796,10.0]
[1673607480099,20.0,16.807,16.796,10.0]
[1673607480497,20.0,16.808,16.797,17.0]
[1673607481246,44.61,16.816,16.797,17.0]
[1673607481247,20.0,16.815,16.797,17.0]
[1673607481445,44.61,16.814,16.797,16.89143924]
[1673607481651,44.61,16.814,16.798,10.0]
[1673607481885,44.6,16.819,16.798,30.0]
[1673607482098,20.0,16.818,16.798,30.0]
[1673607482284,44.6,16.817,16.8,10.0]
[1673607482494,20.0,16.816,16.8,10.0]
[1673607482705,44.61,16.815,16.8,10.0]
[1673607484084,44.61,16.815,16.798,10.0]